Cogmind - Beta 13 *** ADVENTURER MODE // 2024.06.07 @ 10:08:11 Player: ME Result: Destroyed by G-47 Trooper with Particle Gun Performance ------------- Evolutions (2) 1000 Regions Visited (6) 1200 Robots Destroyed (109) 545 Value Destroyed (4343) 4343 Prototype IDs (11) 220 Alien Tech Used (0) 0 Bonus (1411) 1411 TOTAL SCORE: 8719 Bonus ------- High Alert Combat Kills 331 Follower Combat Kills 136 Entered Garrisons 200 Used RIF Installer 1000 Friendly Fire -256 Cogmind --------- Core Integrity 0/550 Matter 266/300 Energy 305/305 System Corruption 2% Temperature Cool (24) Movement Walking (120) Location -8/Storage Parts ------- > --- POWER (2) -------- Improved Ion Engine Light Deuterium Engine > --- PROPULSION (3) --- Carbon-fiber Leg Carbon-fiber Leg Carbon-fiber Leg > --- UTILITY (3) ------ Improved Heat Sink Improved Signal Interpreter Relay Coupler [Hunter] (21) > --- WEAPON (3) ------- Heavy Assault Rifle Enhanced Autogun Mini Assault Cannon > --- INVENTORY (5) ---- Carbon-fiber Leg Advanced Targeting Computer Relay Coupler [Specialist] (23) Relay Coupler [Hunter] (19) Datajack Peak State ------------ > --- POWER ------------ Improved Ion Engine Light Deuterium Engine > --- PROPULSION ------- Carbon-fiber Leg Carbon-fiber Leg Carbon-fiber Leg > --- UTILITY ---------- Improved Heat Sink Improved Signal Interpreter Relay Coupler [Hunter] > --- WEAPON ----------- Heavy Assault Rifle Enhanced Autogun Mini Assault Cannon > --- INVENTORY -------- Carbon-fiber Leg Advanced Targeting Computer Relay Coupler [Specialist] Relay Coupler [Hunter] Datajack [Rating: 37] Favorites ----------- Power Light Nuclear Core Engine Ion Engine Power Core Light Nuclear Core Propulsion Carbon-fiber Leg Leg Carbon-fiber Leg Utility Small Storage Unit Device Recoil Stabilizer Storage Small Storage Unit Processor Improved Signal Interpreter Hackware Relay Coupler [Sentry] Weapon Improved Light Cannon Energy Gun Heavy Laser Energy Cannon EM Pulse Cannon Ballistic Gun Autogun Ballistic Cannon Improved Light Cannon Special Weapon Remote Datajack Slashing Weapon Katana Special Melee Weapon Improved Datajack Build | -11 -10 -9 -8 -8 -8 -8 ------- Run | Yrd Mat Mat Mat Gar Mat Sto Slots Evolved 4 | . . 2 2 . . . Power 1 | . . . 1 . . . Propulsion 1 | . . 1 . . . . Utility 1 | . . 1 . . . . Weapon 1 | . . . 1 . . . Parts Attached 79 | 7 5 12 16 16 14 9 Power 16 | 1 . 2 4 6 3 . Engine 8 | 1 . 2 2 1 2 . Core 8 | . . . 2 5 1 . Reactor . | . . . . . . . Propulsion 24 | 2 2 5 5 3 4 3 Treads . | . . . . . . . Leg 24 | 2 2 5 5 3 4 3 Wheel . | . . . . . . . Hover . | . . . . . . . Flight . | . . . . . . . Utility 14 | 2 1 3 2 2 2 2 Device 7 | 1 1 2 1 . 1 1 Storage 1 | 1 . . . . . . Processor 3 | . . 1 1 1 . . Hackware 3 | . . . . 1 1 1 Protection . | . . . . . . . Artifact . | . . . . . . . Weapon 25 | 2 2 2 5 5 5 4 Energy Gun 7 | 2 2 . . 1 2 . Energy Cannon 1 | . . . 1 . . . Ballistic Gun 9 | . . 2 2 1 2 2 Ballistic Cannon 4 | . . . 2 1 . 1 Launcher . | . . . . . . . Special Weapon 1 | . . . . 1 . . Impact Weapon . | . . . . . . . Slashing Weapon 2 | . . . . 1 . 1 Piercing Weapon . | . . . . . . . Special Melee Weapon 1 | . . . . . 1 . Unidentified Prototypes 1 | . . . 1 . . . Parts Lost 19 | . 2 2 . 6 4 5 Power 5 | . . 1 . 2 2 . Propulsion 4 | . . . . 2 2 . Utility 3 | . . 1 . . . 2 Weapon 7 | . 2 . . 2 . 3 Highest Loss Streak 5 | . 1 2 . 4 1 5 To Critical Strikes . | . . . . . . . Average Slot Usage (%) 95 | . 98 98 95 95 91 95 Engine 8 | . 14 10 12 3 4 18 Core 5 | . . . 5 12 7 . Leg 27 | . 28 33 27 26 26 26 Device 8 | . 13 20 9 2 6 5 Storage 9 | . 14 11 9 9 9 1 Processor 7 | . . . 9 12 9 9 Hackware 2 | . . . . 2 2 8 Energy Gun 6 | . 26 3 . . 8 2 Ballistic Gun 8 | . . 18 14 2 8 18 Ballistic Cannon 5 | . . . 7 12 . 2 Slashing Weapon 3 | . . . . 8 6 . Naked Turns . | . . . . . . . Heaviest Build 32 | 15 15 18 32 31 27 26 Greatest Support 47 | 20 20 39 45 47 47 45 Greatest Overweight (x) 2 | 2 . . . . . . Average Overweight (x) . | . . . . . . . Largest Inventory Capacity 8 | 8 8 8 8 8 8 8 Average Capacity 7 | 7 8 8 8 8 8 5 Most Carried 8 | 3 6 8 8 8 8 8 Average Carried 6 | 1 3 7 7 7 7 4 Final Capacity 8 | 8 8 8 8 8 8 5 Final Carried 8 | 2 6 8 8 7 8 5 Class Distribution -------------------- 40% | Mutant 26% | Scavenger-Mutant 17% | Bothacker-Mutant 10% | Gunner 3% | Commander-Gunner Dominant Class ---------------- Mutant | -10/Materials Mutant | -9/Materials Mutant | -8/Materials Scavenger-Mutant | -8/Garrison Scavenger-Mutant | -8/Materials Commander-Gunner | -8/Storage Resources | -11 -10 -9 -8 -8 -8 -8 ----------- Run | Yrd Mat Mat Mat Gar Mat Sto Matter Collected 2295 | 270 50 357 458 620 327 213 Remotely . | . . . . . . . Salvage Created 3815 | 124 616 543 622 718 692 500 Parts 217 | 7 33 31 45 34 38 29 Haulers Intercepted . | . . . . . . . Recyclers Shooed 1 | . . . . . . 1 Parts Field Recycled . | . . . . . . . Retrieved Matter . | . . . . . . . Parts Self-Destructed . | . . . . . . . Prevented . | . . . . . . . Kills | -11 -10 -9 -8 -8 -8 -8 ------- Run | Yrd Mat Mat Mat Gar Mat Sto Combat Hostiles Destroyed 88 | . 13 12 16 22 14 11 Melee 14 | . . . . 8 5 1 Guns 49 | . 12 12 7 . 9 9 Cannons 24 | . . . 9 14 . 1 Classes Destroyed 12 | 2 3 3 1 2 . 1 Builder 1 | . . . . . . 1 Tunneler 2 | 2 . . . . . . Recycler 4 | 1 1 . 1 . 1 . Watcher 12 | . 2 4 4 . 2 . Swarmer 20 | . 3 3 7 . 4 3 Cutter 2 | . . . . 2 . . Grunt 29 | . 10 3 2 9 3 2 Brawler 2 | . . 1 . 1 . . Duelist 5 | . . 2 1 1 1 . Sentry 23 | . . 3 5 4 6 5 Hunter 6 | . . . 1 3 . 2 Programmer 3 | . . . . 3 . . Best Kill Streak 8 | 2 4 3 5 4 5 8 Combat Bots Only 7 | . 4 3 5 4 4 7 Max Kills in Single Turn 2 | 1 1 1 2 1 1 2 Gunslinging 1 | . . . 1 . . . Exploded . | . . . . . . . Melee 1 | . . . . 1 1 1 Uniques/NPCs Destroyed . | . . . . . . . Combat | -11 -10 -9 -8 -8 -8 -8 -------- Run | Yrd Mat Mat Mat Gar Mat Sto Hostile Shots Fired 486 | . 70 56 44 131 87 98 Missed 152 | . 17 22 9 36 33 35 Damage Taken 3662 | . 437 414 360 1269 617 565 Core 704 | . 99 55 44 295 89 122 Absorbed by Shields 4 | . . . . 4 . . Ignored by Resistances 1067 | . 141 122 109 358 179 158 Regen/Repaired (Parts) 103 | . . . . . 103 . Core Remaining (%) 82 | 100 60 86 . . . . Volleys Fired 250 | 7 54 42 35 54 36 22 Largest 3 | 2 2 2 3 3 2 3 Hottest 119 | 90 90 73 103 103 97 119 Shots Fired 502 | 14 91 84 92 103 65 53 Gun 356 | 14 91 84 48 5 65 49 Cannon 141 | . . . 44 93 . 4 Launcher . | . . . . . . . Special 5 | . . . . 5 . . Kinetic 345 | . . 75 92 98 36 44 Thermal 108 | 7 54 9 . . 29 9 Explosive . | . . . . . . . Electromagnetic 44 | 7 37 . . . . . Robot Hit Streak 25 | 7 16 25 14 23 12 22 Robot Miss Streak 3 | 1 3 2 3 1 2 3 Penetration Max . | . . . . . . . Secondary Targets 10 | . 4 1 2 . 1 2 Max Gunslinging Chain 1 | . 1 1 1 . 1 1 Shots Hit Robots 435 | 10 69 74 68 103 68 43 Core Hits 178 | 4 26 26 34 39 27 22 Critical Kills . | . . . . . . . Critical Parts Destroyed 2 | . . . 1 . 1 . Critical Strikes 22 | 1 7 . 1 9 4 . Burn 7 | 1 6 . . . . . Destroy 2 | . . . 1 . 1 . Blast 7 | . . . . 7 . . Corrupt 1 | . 1 . . . . . Sever 5 | . . . . 2 3 . Melee Attacks 96 | . . . . 71 24 1 Impact . | . . . . . . . Slashing 90 | . . . . 71 18 1 Piercing . | . . . . . . . Sneak Attacks 5 | . . . . 1 4 . Combat Hostiles 1 | . . . . 1 . . Follow-up Attacks . | . . . . . . . Damage Inflicted 7761 | 130 901 1085 1326 2288 1230 801 Guns 4357 | 130 901 1085 640 53 883 665 Cannons 2369 | . . . 686 1582 . 101 Explosions 38 | . . . . 38 . . Melee 997 | . . . . 615 347 35 Ramming . | . . . . . . . Kinetic 4951 | . . 971 1326 1635 424 595 Thermal 1293 | 51 498 114 . . 459 171 Explosive 38 | . . . . 38 . . Electromagnetic 482 | 79 403 . . . . . Impact . | . . . . . . . Slashing 997 | . . . . 615 347 35 Piercing . | . . . . . . . Highest Corruption 3 | . . 3 . 2 2 2 Average Corruption 2 | . . 2 . 1 2 2 Corruption Purged . | . . . . . . . Corruption Blocked . | . . . . . . . Effects 30 | . . 1 . 8 16 5 Message Errors 5 | . . . . . 4 1 Matter Fused 8 | . . 1 . 1 5 1 Heat Flow Errors 6 | . . . . 4 2 . Energy Discharges 6 | . . . . 2 2 2 Parts Rejected 1 | . . . . . 1 . Data Loss (minor) 2 | . . . . . 1 1 Data Loss (major) 1 | . . . . 1 . . Alerts 1 | . . . . . 1 . Overload Shots . | . . . . . . . Overflow Damage 120 | . . . . 102 18 . Projectiles . | . . . . . . . Explosions 88 | . . . . 88 . . Melee 32 | . . . . 14 18 . Knockbacks 23 | . . . 2 21 . . Impact . | . . . . . . . Kinetic 22 | . . . 2 20 . . Secondary 1 | . . . . 1 . . Self-Inflicted Damage 123 | . . . . 123 . . Shots 1 | . . . . 1 . . Rammed . | . . . . . . . Targets Rammed 1 | . . . . . . 1 Kicked 1 | . . . . . . 1 Crushed . | . . . . . . . Highest Temperature 332 | 90 252 17 332 227 258 243 Average Temperature 80 | 38 98 7 91 65 65 104 Received Heat Transfer 1290 | . 237 141 108 345 288 171 Effects 7 | . . . 4 2 . 1 Energy Bleed 1 | . . . . . . 1 Interference 6 | . . . 4 2 . . Siege Activations . | . . . . . . . Robots Corrupted . | . . . . . . . Combat Hostiles . | . . . . . . . Parts Fried 1 | 1 . . . . . . Impact Corruptions . | . . . . . . . Robots Melted 1 | . 1 . . . . . Combat Hostiles 1 | . 1 . . . . . Parts Melted 6 | . 4 . . . 2 . Heat Transferred 3700 | 222 1924 333 . . 888 333 Parts Sabotaged . | . . . . . . . Parts Stolen . | . . . . . . . Parts Stripped . | . . . . . . . Power Chain Reactions . | . . . . . . . Alert | -11 -10 -9 -8 -8 -8 -8 ------- Run | Yrd Mat Mat Mat Gar Mat Sto Peak Influence 1171 | 15 229 373 465 1171 581 566 Initial 491 | . 8 76 113 151 491 118 Average 367 | 6 104 195 186 665 406 306 Maximum Alert Level 4 | . 1 1 2 4 2 2 Low Security (%) 31 | 100 77 48 59 2 . 27 Level 1 34 | . 22 51 36 23 46 52 Level 2 19 | . . . 3 27 53 19 Level 3 10 | . . . . 35 . . Level 4 3 | . . . . 11 . . Level 5 . | . . . . . . . High Security . | . . . . . . . Max Security . | . . . . . . . Squads Dispatched 7 | . 3 . . . 1 3 Investigation 4 | . 3 . . . . 1 Extermination . | . . . . . . . Reinforcement 2 | . . . . . 1 1 Assault . | . . . . . . . Garrison 1 | . . . . . . 1 Intercept . | . . . . . . . Searches Triggered . | . . . . . . . Construction Impeded . | . . . . . . . Haulers Reinforced . | . . . . . . . Active Scanning Responses . | . . . . . . . Cargo Convoy Interrupts . | . . . . . . . Stealth | -11 -10 -9 -8 -8 -8 -8 --------- Run | Yrd Mat Mat Mat Gar Mat Sto Distress Signals 4 | . . 1 3 . . . Communications Jammed . | . . . . . . . Distress Signals . | . . . . . . . Times Spotted 138 | . 21 18 24 35 22 18 Peak Tracking Total 7 | . 4 3 5 5 3 7 Tactical Retreats 8 | . 1 1 1 4 1 . Traps | -11 -10 -9 -8 -8 -8 -8 ------- Run | Yrd Mat Mat Mat Gar Mat Sto Traps Triggered 5 | . 3 . . 1 1 . Indirectly . | . . . . . . . Trap Hack Attempts . | . . . . . . . Triggered . | . . . . . . . Disarmed . | . . . . . . . Reprogrammed . | . . . . . . . Reused . | . . . . . . . Traps Extracted . | . . . . . . . Installed . | . . . . . . . Triggered . | . . . . . . . Machines | -11 -10 -9 -8 -8 -8 -8 ---------- Run | Yrd Mat Mat Mat Gar Mat Sto Machines Disabled 10 | . 2 . . 5 3 . Max in Single Turn 2 | . 1 . . 2 1 . Garrison Relay 3 | . . . . 3 . . Phase Generator 1 | . . . . 1 . . Machines Repaired . | . . . . . . . Machines Dismantled . | . . . . . . . Machines Sabotaged . | . . . . . . . Overloaded Fab Kills . | . . . . . . . Hacking | -11 -10 -9 -8 -8 -8 -8 --------- Run | Yrd Mat Mat Mat Gar Mat Sto Machines Accessed 33 | . 6 5 7 3 6 6 Terminals 25 | . 6 4 4 3 4 4 Fabricators . | . . . . . . . Repair Stations 1 | . . . . . 1 . Recycling Units 5 | . . 1 1 . 1 2 Scanalyzers 1 | . . . 1 . . . Garrison Access 1 | . . . 1 . . . Total Hacks 66 | . 18 9 10 6 16 7 Successful 41 | . 9 5 8 2 11 6 Failed 25 | . 9 4 2 4 5 1 Catastrophic 5 | . . 1 . 2 1 1 Database Lockouts . | . . . . . . . Manual 6 | . 3 3 . . . . Terminals 54 | . 18 6 6 6 13 5 Fabricators . | . . . . . . . Repair Stations 2 | . . . . . 2 . Recycling Units 7 | . . 3 1 . 1 2 Scanalyzers 2 | . . . 2 . . . Garrison Access 1 | . . . 1 . . . Terminal Hacks 31 | . 9 4 4 2 8 4 Record 2 | . . . 1 . 1 . Robot Analysis 2 | . 2 . . . . . Prototype ID Bank 6 | . 3 . 2 . 1 . Open Door 3 | . . . . . . 3 Level Access Points 2 | . 1 . . . . 1 Branch Access Points 2 | . 1 1 . . . . Emergency Access Points 1 | . . . . . 1 . Terminal Index 1 | . . 1 . . . . Alert Level 3 | . . . 1 . 2 . Unreport Threat 2 | . . . . . 2 . Locate Traps 1 | . . . . . 1 . Security Status 1 | . . 1 . . . . Surveillance Status 1 | . 1 . . . . . Hauler Manifests 1 | . 1 . . . . . Zone Layout 1 | . . 1 . . . . Garrison Registry 1 | . . . . 1 . . Security Stations 1 | . . . . 1 . . Fabricator Hacks . | . . . . . . . Repair Station Hacks 2 | . . . . . 2 . Scan Component 1 | . . . . . 1 . Repair 1 | . . . . . 1 . Recycling Unit Hacks 5 | . . 1 1 . 1 2 Process 1 | . . . . . 1 . Report Inventory 4 | . . 1 1 . . 2 Scanalyzer 2 | . . . 2 . . . Insert Component 1 | . . . 1 . . . Analyze 1 | . . . 1 . . . Garrison Access Hacks 1 | . . . 1 . . . Unlock Access 1 | . . . 1 . . . Unauthorized Hacks . | . . . . . . . Terminals . | . . . . . . . Fabricators . | . . . . . . . Repair Stations . | . . . . . . . Recycling Units . | . . . . . . . Scanalyzers . | . . . . . . . Garrison Access . | . . . . . . . Data Cores Recovered . | . . . . . . . Used . | . . . . . . . Hacking Detections 19 | . 3 3 3 3 5 2 Full Trace Events 4 | . . 1 . 1 1 1 Feedback Events . | . . . . . . . Feedback Blocked . | . . . . . . . Robot Schematics Acquired . | . . . . . . . Robots Built . | . . . . . . . Authchips . | . . . . . . . Time . | . . . . . . . Total Robot Build Rating . | . . . . . . . Part Schematics Acquired 1 | . . . 1 . . . Parts Built . | . . . . . . . Authchips . | . . . . . . . Time . | . . . . . . . Total Part Build Rating . | . . . . . . . Parts Repaired 1 | . . . . . 1 . Time 38 | . . . . . 38 . Parts Recycled . | . . . . . . . Recycled Matter 91 | . . . . . 91 . Retrieved Matter . | . . . . . . . Retrieved Components . | . . . . . . . Parts Scanalyzed 1 | . . . 1 . . . Part Schematics Acquired 1 | . . . 1 . . . Parts Damaged . | . . . . . . . Bothacking | -11 -10 -9 -8 -8 -8 -8 ------------ Run | Yrd Mat Mat Mat Gar Mat Sto Used RIF Installer 2 | . . . . 2 . . Patrol Navigation 1 | . . . . 1 . . Robots Hacked 3 | . . . . 1 2 . Non-combat . | . . . . . . . Combat 3 | . . . . 1 2 . Robot Hacks Applied 5 | . . . . 2 3 . parse_system 1 | . . . . . 1 . go_dormant 1 | . . . . 1 . . streamctrl_high 1 | . . . . . 1 . formatsys_high 2 | . . . . 1 1 . Relay Couplers Released 15 | . . . . 15 . . Machine Destruction 12 | . . . . 12 . . Programmers 3 | . . . . 3 . . Attached 3 | . . . . 1 1 1 Fabnet Peak Effective % . | . . . . . . . Robots Rewired . | . . . . . . . Allies Hacked . | . . . . . . . Hacks Repelled . | . . . . . . . Allies | -11 -10 -9 -8 -8 -8 -8 -------- Run | Yrd Mat Mat Mat Gar Mat Sto Total Allies 13 | . . . . 1 2 10 Largest Group 10 | . . . . 1 1 10 Highest-Rated Group 173 | . . . . 15 29 173 Highest-Rated Ally 29 | . . . . 15 29 29 Total Orders . | . . . . . . . Ally Attacks 38 | . . . . . 13 25 Total Damage 519 | . . . . . 174 345 Kills 7 | . . . . . 2 5 Allies Corrupted . | . . . . . . . Allies Melted 1 | . . . . . . 1 Intel | -11 -10 -9 -8 -8 -8 -8 ------- Run | Yrd Mat Mat Mat Gar Mat Sto Robot Analysis Total 2 | . 2 . . . . . Derelict Logs Recovered . | . . . . . . . Drone Launches . | . . . . . . . Drone Recoveries . | . . . . . . . Exploration | -11 -10 -9 -8 -8 -8 -8 ------------- Run | Yrd Mat Mat Mat Gar Mat Sto Turns Passed 4979 | 106 686 573 837 1530 888 359 Spaces Moved 2997 | 61 423 350 537 935 475 216 Core 11 | 11 . . . . . . Treads . | . . . . . . . Legs 2986 | 50 423 350 537 935 475 216 Wheels . | . . . . . . . Hover . | . . . . . . . Flight . | . . . . . . . Fastest Speed 50 | 50 120 120 113 113 120 120 Average Speed 119 | 118 120 120 118 116 122 120 Slowest Speed 150 | 150 120 120 123 125 125 120 Overloaded Moves . | . . . . . . . Propulsion Burnouts . | . . . . . . . Robots Hopped . | . . . . . . . Cave-ins Triggered . | . . . . . . . Exploration Rate (%) 51 | 5 77 38 57 91 51 38 Regions Visited 6 Branch Regions 1 Pre-discovered Areas . | . . . . . . . Known Exits Taken 4 | . 1 1 1 . 1 . Unknown Exits Taken 1 | 1 . . . . . . Scrap Searched . | . . . . . . . Spaces Dug 2 | . . . . 2 . . Terrain Destroyed 48 | . . . 2 46 . . Melee 2 | . . . . 2 . . Projectile 2 | . . . 2 . . . AOE 44 | . . . . 44 . . Terrain Rammed . | . . . . . . . Walls Destroyed . | . . . . . . . Machines Disabled . | . . . . . . . Actions | -11 -10 -9 -8 -8 -8 -8 --------- Run | Yrd Mat Mat Mat Gar Mat Sto Total 3830 | 78 509 425 671 1179 690 278 Wait 307 | . 24 17 68 38 138 22 Move 2990 | 60 422 349 536 933 474 216 Hop . | . . . . . . . Pick Up 27 | 3 3 1 2 15 1 2 Fast Attach 40 | 7 2 5 5 7 10 4 Attach 10 | . 1 2 2 2 . 3 Detach 1 | . . . 1 . . . Swap 29 | . 2 5 9 7 4 2 Drop 43 | 1 1 4 13 18 3 3 Fire 250 | 7 54 42 35 54 36 22 Melee 96 | . . . . 71 24 1 Ram . | . . . . . . . Kick 1 | . . . . . . 1 Crush . | . . . . . . . Escape Stasis 5 | . . . . 5 . . Rewire 31 | . . . . 29 . 2 Trap . | . . . . . . . Miscellaneous . | . . . . . . . Route ------- -11/Scrapyard -10/Materials (discovered 5 exits: *Mat x3 / *Min x2) -9/Materials (discovered 3 exits: *Mat x2 / Min) -8/Materials (discovered 2 exits: *Fac / Gar) -8/Garrison (discovered 3 exits: *Mat x3) -8/Materials -8/Storage (discovered 1 exit: Fac) History --------- Turn | Location | Event 18 | -11/Scrapyard | Discovered new exit (range 14) 107 | -11/Scrapyard | Entered Materials 307 | -10/Materials | Build established: Mutant 334 | -10/Materials | Identified exit to Materials 378 | -10/Materials | Discovered new exit (range 10) 468 | -10/Materials | Identified exit to Mines 793 | -10/Materials | Entered another Materials area 793 | -9/Materials | Evolved 2 slots: Propulsion x1, Utility x1 994 | -9/Materials | Discovered new exit (range 18) 1249 | -9/Materials | Discovered new exit (range 10) 1354 | -9/Materials | Identified exit to Mines 1365 | -9/Materials | Identified exit to Materials 1366 | -9/Materials | Entered another Materials area 1366 | -8/Materials | Evolved 2 slots: Power x1, Weapon x1 1936 | -8/Materials | Discovered new exit (range 13) 2089 | -8/Materials | Build established: Gunner 2202 | -8/Materials | Identified exit to Garrison 2203 | -8/Materials | Entered Garrison 2399 | -8/Garrison | Triggered checkpoint 2501 | -8/Garrison | Triggered checkpoint 2601 | -8/Garrison | Triggered checkpoint 2633 | -8/Garrison | Triggered checkpoint 2724 | -8/Garrison | Discovered new exit (range 12) 2725 | -8/Garrison | Build established: Scavenger-Mutant 2729 | -8/Garrison | Learned Materials security intel 2751 | -8/Garrison | Discovered new exit (range 6) 2751 | -8/Garrison | Discovered new exit (range 46) 2751 | -8/Garrison | Discovered new exit (range 51) 2881 | -8/Garrison | Installed Relay Interface Framework 3019 | -8/Garrison | Garrison Relay disabled 3268 | -8/Garrison | Core integrity fell below 50% 3283 | -8/Garrison | Identified exit to Materials 3351 | -8/Garrison | Phase Generator disabled 3377 | -8/Garrison | Expanded RIF knowledge: Patrol Navigation 3382 | -8/Garrison | Lost 4 parts (1p2n1w) 3409 | -8/Garrison | Garrison Relay disabled 3499 | -8/Garrison | Triggered checkpoint 3547 | -8/Garrison | Triggered checkpoint 3581 | -8/Garrison | Garrison Relay disabled 3631 | -8/Garrison | Build established: Bothacker-Mutant 3733 | -8/Garrison | Entered Materials 3956 | -8/Materials | Build established: Scavenger-Mutant 4098 | -8/Materials | Repaired Carbon-fiber Leg 4594 | -8/Materials | Discovered new exit (range 14) 4619 | -8/Materials | Identified exit to Storage 4621 | -8/Materials | Entered Storage 4621 | -8/Storage | Accompanied by 1 ally 4639 | -8/Storage | Build established: Bothacker-Mutant 4681 | -8/Storage | Core integrity fell below 20% 4753 | -8/Storage | Lost 5 parts (2u3w) 4770 | -8/Storage | Destroyed 7 combat bots 4807 | -8/Storage | Assisted by bots powering up and referring to "LRC-V3" 4807 | -8/Storage | Identified exit to Factory 4922 | -8/Storage | Garrison activated, responded to threat 4980 | -8/Storage | Destroyed by G-47 Trooper with Particle Gun Last Messages --------------- ALERT: Activating Garrison Access S001. Y-45 Defender destroyed. Soldier 3b suffers critical hit (Burn). Soldier 3b critical meltdown. R-06 Scavenger collects Lgt. Armor Plating. G-47 Trooper destroyed. Acquired 58 matter. Connecting with Recycling Unit... >>Recycling(Report) Matter reserves: 0 Inventory: Empty ALERT: Hostiles spotted, dispatching reinforcements to Terminal S004. K-01 Serf collects debris. G-47 Trooper destroyed. K-01 Serf collects debris. Trooper 3e destroyed. K-01 Serf collects debris. System corrupted: Matter fused (-8). Trooper 3j destroyed. Map ----- +----------------------------------------------------+ | ??????????????????????????????????????????????? | | ??????????????????????????????????????????????? | | ??????????????????????????????????????????????? | | ??????????????????????????????????????????????? | | ??????????????????????????????????????????????? | | ????????????